{"text_format":"1","workbook":"xlsx","n_sheets":86,"sheets":["Оглавление","007scania","А530НР","А963НР","В001СН","В002СН","В003СН","В197АУ","В489КВ","В490КВ","В892ТО","В893ТО","В975АУ","Е816НВ","Е913МС","К145УК","К146УК","К521ОЕ","К951УК","М673ХР","М758НК","М783РТ","М784РТ","М786РТ","М788РТ","М864РТ","Н835МС","О255УЕ","О257УЕ","О259УЕ","О448ВМ","О449ВМ","О453УЕ","О485ММ","О752УЕ","О868МС","О878МС","О885МС","О886РВ","О890РВ","О965УЕ","О966УЕ","О967УЕ","О968УЕ","О970УЕ","О971УЕ","О972УЕ","О973УЕ","Р892ВА","Р893ВА","Р952НК","С165МО","С246АУ","С497СВ","С628МН","С923ОТ","С924ОТ","С925ОТ","С927ОТ","С928ОТ","Т228ХЕ","Т642РС","Т644РС","Т645РС","Т907СМ","Т908СМ","Т911СМ","Т913СМ","У045MB","У046МВ","У122МУ","У793ММ","У794МВ","У794ММ","У795АУ","У796АУ","Х083РК","Х187ТХ","Х188ТХ","Х455ХМ","Х630ТХ","Х671ТХ","Х921РТ","Х922РТ","Х923РТ","Х987ТХ"],"not_rendered":{"charts":0,"images":0,"macros":0,"external_links":0,"defined_names":2,"comments":0,"pivot_tables":0},"unopened":[],"bounds":{"document_bytes":16777216,"sheet_cells":100000,"rows_first":2000,"rows_last":500,"rows_between":2000,"halvings":0,"cell_chars":16384,"cell_head_chars":4096},"cells_cut":0,"cells_raw":0,"read":"whole","date_system":"1900"}

{"sheet":"Оглавление","index":0,"n_rows":86,"n_cols":5,"rows_kept":86,"cut":false,"hidden":false,"merged":[]}
["номер машины",null,"количество неисправностей","дата ","причина"]
[{"$f":"INDEX(Оглавление, ROW())","v":"007scania"},{"$f":"HYPERLINK(\"#\"&A2&\"!A1\",\"=>\")","v":"=>"},{"$f":"COUNTA('007scania'!$E:$E)-1","v":1},{"$f":"MAX('007scania'!E:E)","v":0}]
[{"$f":"INDEX(Оглавление, ROW())","v":"А530НР"},"=>",{"$f":"COUNTA(А530НР!$E:$E)-1","v":2}]
[{"$f":"INDEX(Оглавление, ROW())","v":"А963НР"},"=>",{"$f":"COUNTA(А963НР!$E:$E)-1","v":1}]
[{"$f":"INDEX(Оглавление, ROW())","v":"В001СН"},"=>",{"$f":"COUNTA(В001СН!$E:$E)-1","v":0}]
[{"$f":"INDEX(Оглавление, ROW())","v":"В002СН"},"=>",{"$f":"COUNTA(В002СН!$E:$E)-1","v":2}]
[{"$f":"INDEX(Оглавление, ROW())","v":"В003СН"},"=>",{"$f":"COUNTA(В003СН!$E:$E)-1","v":1}]
[{"$f":"INDEX(Оглавление, ROW())","v":"В197АУ"},"=>",{"$f":"COUNTA(В197АУ!$E:$E)-1","v":0}]
[{"$f":"INDEX(Оглавление, ROW())","v":"В489КВ"},"=>",{"$f":"COUNTA(В489КВ!$E:$E)-1","v":0}]
[{"$f":"INDEX(Оглавление, ROW())","v":"В490КВ"},"=>",{"$f":"COUNTA(В490КВ!$E:$E)-1","v":0}]
[{"$f":"INDEX(Оглавление, ROW())","v":"В892ТО"},"=>",{"$f":"COUNTA(В892ТО!$E:$E)-1","v":0}]
[{"$f":"INDEX(Оглавление, ROW())","v":"В893ТО"},"=>",{"$f":"COUNTA(В893ТО!$E:$E)-1","v":0}]
[{"$f":"INDEX(Оглавление, ROW())","v":"В975АУ"},"=>",{"$f":"COUNTA(В975АУ!$E:$E)-1","v":0}]
[{"$f":"INDEX(Оглавление, ROW())","v":"Е816НВ"},"=>",{"$f":"COUNTA(Е816НВ!$E:$E)-1","v":2}]
[{"$f":"INDEX(Оглавление, ROW())","v":"Е913МС"},"=>",{"$f":"COUNTA(Е913МС!$E:$E)-1","v":1}]
[{"$f":"INDEX(Оглавление, ROW())","v":"К145УК"},"=>",{"$f":"COUNTA(К145УК!$E:$E)-1","v":0}]
[{"$f":"INDEX(Оглавление, ROW())","v":"К146УК"},"=>",{"$f":"COUNTA(К146УК!$E:$E)-1","v":0}]
[{"$f":"INDEX(Оглавление, ROW())","v":"К521ОЕ"},"=>",{"$f":"COUNTA(К521ОЕ!$E:$E)-1","v":0}]
[{"$f":"INDEX(Оглавление, ROW())","v":"К951УК"},"=>",{"$f":"COUNTA(К951УК!$E:$E)-1","v":0}]
[{"$f":"INDEX(Оглавление, ROW())","v":"М673ХР"},"=>",{"$f":"COUNTA(М673ХР!$E:$E)-1","v":0}]
[{"$f":"INDEX(Оглавление, ROW())","v":"М758НК"},"=>",{"$f":"COUNTA(М758НК!$E:$E)-1","v":0}]
[{"$f":"INDEX(Оглавление, ROW())","v":"М783РТ"},"=>",{"$f":"COUNTA(М783РТ!$E:$E)-1","v":1}]
[{"$f":"INDEX(Оглавление, ROW())","v":"М784РТ"},"=>",{"$f":"COUNTA(М784РТ!$E:$E)-1","v":1}]
[{"$f":"INDEX(Оглавление, ROW())","v":"М786РТ"},"=>",{"$f":"COUNTA(М786РТ!$E:$E)-1","v":4}]
[{"$f":"INDEX(Оглавление, ROW())","v":"М788РТ"},"=>",{"$f":"COUNTA(М788РТ!$E:$E)-1","v":1}]
[{"$f":"INDEX(Оглавление, ROW())","v":"М864РТ"},"=>",{"$f":"COUNTA(М864РТ!$E:$E)-1","v":4}]
[{"$f":"INDEX(Оглавление, ROW())","v":"Н835МС"},"=>",{"$f":"COUNTA(Н835МС!$E:$E)-1","v":0}]
[{"$f":"INDEX(Оглавление, ROW())","v":"О255УЕ"},"=>",{"$f":"COUNTA(О255УЕ!$E:$E)-1","v":2}]
[{"$f":"INDEX(Оглавление, ROW())","v":"О257УЕ"},"=>",{"$f":"COUNTA(О257УЕ!$E:$E)-1","v":0}]
[{"$f":"INDEX(Оглавление, ROW())","v":"О259УЕ"},"=>",{"$f":"COUNTA(О259УЕ!$E:$E)-1","v":1}]
[{"$f":"INDEX(Оглавление, ROW())","v":"О448ВМ"},"=>",{"$f":"COUNTA(О448ВМ!$E:$E)-1","v":1}]
[{"$f":"INDEX(Оглавление, ROW())","v":"О449ВМ"},"=>",{"$f":"COUNTA(О449ВМ!$E:$E)-1","v":1}]
[{"$f":"INDEX(Оглавление, ROW())","v":"О453УЕ"},"=>",{"$f":"COUNTA(О453УЕ!$E:$E)-1","v":7}]
[{"$f":"INDEX(Оглавление, ROW())","v":"О485ММ"},{"$f":"HYPERLINK(\"#\"&A34&\"!A1\",\"=>\")","v":"=>"},{"$f":"COUNTA(О485ММ!$E:$E)-1","v":0}]
[{"$f":"INDEX(Оглавление, ROW())","v":"О752УЕ"},"=>",{"$f":"COUNTA(О752УЕ!$E:$E)-1","v":0}]
[{"$f":"INDEX(Оглавление, ROW())","v":"О868МС"},"=>",{"$f":"COUNTA(О868МС!$E:$E)-1","v":0}]
[{"$f":"INDEX(Оглавление, ROW())","v":"О878МС"},"=>",{"$f":"COUNTA(О878МС!$E:$E)-1","v":1}]
[{"$f":"INDEX(Оглавление, ROW())","v":"О885МС"},"=>",{"$f":"COUNTA(О885МС!$E:$E)-1","v":0}]
[{"$f":"INDEX(Оглавление, ROW())","v":"О886РВ"},"=>",{"$f":"COUNTA(О886РВ!$E:$E)-1","v":0}]
[{"$f":"INDEX(Оглавление, ROW())","v":"О890РВ"},"=>",{"$f":"COUNTA(О890РВ!$E:$E)-1","v":0}]
[{"$f":"INDEX(Оглавление, ROW())","v":"О965УЕ"},"=>",{"$f":"COUNTA(О965УЕ!$E:$E)-1","v":1}]
[{"$f":"INDEX(Оглавление, ROW())","v":"О966УЕ"},"=>",{"$f":"COUNTA(О966УЕ!$E:$E)-1","v":0}]
[{"$f":"INDEX(Оглавление, ROW())","v":"О967УЕ"},"=>",{"$f":"COUNTA(О967УЕ!$E:$E)-1","v":0}]
[{"$f":"INDEX(Оглавление, ROW())","v":"О968УЕ"},"=>",{"$f":"COUNTA(О968УЕ!$E:$E)-1","v":0}]
[{"$f":"INDEX(Оглавление, ROW())","v":"О970УЕ"},"=>",{"$f":"COUNTA(О970УЕ!$E:$E)-1","v":0}]
[{"$f":"INDEX(Оглавление, ROW())","v":"О971УЕ"},"=>",{"$f":"COUNTA(О971УЕ!$E:$E)-1","v":0}]
[{"$f":"INDEX(Оглавление, ROW())","v":"О972УЕ"},"=>",{"$f":"COUNTA(О972УЕ!$E:$E)-1","v":0}]
[{"$f":"INDEX(Оглавление, ROW())","v":"О973УЕ"},"=>",{"$f":"COUNTA(О973УЕ!$E:$E)-1","v":0}]
[{"$f":"INDEX(Оглавление, ROW())","v":"Р892ВА"},"=>",{"$f":"COUNTA(Р892ВА!$E:$E)-1","v":0}]
[{"$f":"INDEX(Оглавление, ROW())","v":"Р893ВА"},"=>",{"$f":"COUNTA(Р893ВА!$E:$E)-1","v":0}]
[{"$f":"INDEX(Оглавление, ROW())","v":"Р952НК"},"=>",{"$f":"COUNTA(Р952НК!$E:$E)-1","v":0}]
[{"$f":"INDEX(Оглавление, ROW())","v":"С165МО"},"=>",{"$f":"COUNTA(С165МО!$E:$E)-1","v":0}]
[{"$f":"INDEX(Оглавление, ROW())","v":"С246АУ"},"=>",{"$f":"COUNTA(С246АУ!$E:$E)-1","v":0}]
[{"$f":"INDEX(Оглавление, ROW())","v":"С497СВ"},"=>",{"$f":"COUNTA(С497СВ!$E:$E)-1","v":1}]
[{"$f":"INDEX(Оглавление, ROW())","v":"С628МН"},"=>",{"$f":"COUNTA(С628МН!$E:$E)-1","v":0}]
[{"$f":"INDEX(Оглавление, ROW())","v":"С923ОТ"},"=>",{"$f":"COUNTA(С923ОТ!$E:$E)-1","v":0}]
[{"$f":"INDEX(Оглавление, ROW())","v":"С924ОТ"},"=>",{"$f":"COUNTA(С924ОТ!$E:$E)-1","v":2}]
[{"$f":"INDEX(Оглавление, ROW())","v":"С925ОТ"},"=>",{"$f":"COUNTA(С925ОТ!$E:$E)-1","v":0}]
[{"$f":"INDEX(Оглавление, ROW())","v":"С927ОТ"},"=>",{"$f":"COUNTA(С927ОТ!$E:$E)-1","v":0}]
[{"$f":"INDEX(Оглавление, ROW())","v":"С928ОТ"},"=>",{"$f":"COUNTA(С928ОТ!$E:$E)-1","v":0}]
[{"$f":"INDEX(Оглавление, ROW())","v":"Т228ХЕ"},"=>",{"$f":"COUNTA(Т228ХЕ!$E:$E)-1","v":0}]
[{"$f":"INDEX(Оглавление, ROW())","v":"Т642РС"},"=>",{"$f":"COUNTA(Т642РС!$E:$E)-1","v":0}]
[{"$f":"INDEX(Оглавление, ROW())","v":"Т644РС"},"=>",{"$f":"COUNTA(Т644РС!$E:$E)-1","v":2}]
[{"$f":"INDEX(Оглавление, ROW())","v":"Т645РС"},"=>",{"$f":"COUNTA(Т645РС!$E:$E)-1","v":0}]
[{"$f":"INDEX(Оглавление, ROW())","v":"Т907СМ"},"=>",{"$f":"COUNTA(Т907СМ!$E:$E)-1","v":1}]
[{"$f":"INDEX(Оглавление, ROW())","v":"Т908СМ"},{"$f":"HYPERLINK(\"#\"&A66&\"!A1\",\"=>\")","v":"=>"},{"$f":"COUNTA(Т908СМ!$E:$E)-1","v":4}]
[{"$f":"INDEX(Оглавление, ROW())","v":"Т911СМ"},"=>",{"$f":"COUNTA(Т911СМ!$E:$E)-1","v":1}]
[{"$f":"INDEX(Оглавление, ROW())","v":"Т913СМ"},"=>",{"$f":"COUNTA(У045MB!$E:$E)-1","v":1}]
[{"$f":"INDEX(Оглавление, ROW())","v":"У045MB"},"=>",{"$f":"COUNTA(Т913СМ!$E:$E)-1","v":1}]
[{"$f":"INDEX(Оглавление, ROW())","v":"У046МВ"},"=>",{"$f":"COUNTA(У046МВ!$E:$E)-1","v":0}]
[{"$f":"INDEX(Оглавление, ROW())","v":"У122МУ"},"=>",{"$f":"COUNTA(У122МУ!$E:$E)-1","v":0}]
[{"$f":"INDEX(Оглавление, ROW())","v":"У793ММ"},"=>",{"$f":"COUNTA(У793ММ!$E:$E)-1","v":2}]
[{"$f":"INDEX(Оглавление, ROW())","v":"У794МВ"},"=>",{"$f":"COUNTA(У794МВ!$E:$E)-1","v":1}]
[{"$f":"INDEX(Оглавление, ROW())","v":"У794ММ"},"=>",{"$f":"COUNTA(У794ММ!$E:$E)-1","v":0}]
[{"$f":"INDEX(Оглавление, ROW())","v":"У795АУ"},"=>",{"$f":"COUNTA(У795АУ!$E:$E)-1","v":0}]
[{"$f":"INDEX(Оглавление, ROW())","v":"У796АУ"},"=>",{"$f":"COUNTA(У796АУ!$E:$E)-1","v":0}]
[{"$f":"INDEX(Оглавление, ROW())","v":"Х083РК"},"=>",{"$f":"COUNTA(Х083РК!$E:$E)-1","v":0}]
[{"$f":"INDEX(Оглавление, ROW())","v":"Х187ТХ"},"=>",{"$f":"COUNTA(Х187ТХ!$E:$E)-1","v":1}]
[{"$f":"INDEX(Оглавление, ROW())","v":"Х188ТХ"},"=>",{"$f":"COUNTA(Х188ТХ!$E:$E)-1","v":1}]
[{"$f":"INDEX(Оглавление, ROW())","v":"Х455ХМ"},"=>",{"$f":"COUNTA(Х455ХМ!$E:$E)-1","v":1}]
[{"$f":"INDEX(Оглавление, ROW())","v":"Х630ТХ"},"=>",{"$f":"COUNTA(Х630ТХ!$E:$E)-1","v":0}]
[{"$f":"INDEX(Оглавление, ROW())","v":"Х671ТХ"},"=>",{"$f":"COUNTA(Х671ТХ!$E:$E)-1","v":0}]
[{"$f":"INDEX(Оглавление, ROW())","v":"Х921РТ"},"=>",{"$f":"COUNTA(Х921РТ!$E:$E)-1","v":0}]
[{"$f":"INDEX(Оглавление, ROW())","v":"Х922РТ"},"=>",{"$f":"COUNTA(Х922РТ!$E:$E)-1","v":0}]
[{"$f":"INDEX(Оглавление, ROW())","v":"Х923РТ"},"=>",{"$f":"COUNTA(Х923РТ!$E:$E)-1","v":0}]
[{"$f":"INDEX(Оглавление, ROW())","v":"Х987ТХ"},"=>",{"$f":"COUNTA(Х987ТХ!$E:$E)-1","v":0}]

{"sheet":"007scania","index":1,"n_rows":5,"n_cols":8,"rows_kept":5,"cut":false,"hidden":false,"merged":[]}
["Назад"]
[null,null,null,"№","дата задачи",null,"причина","ссылка на мегаплан"]
[null,null,null,1,"1 сентября 2014 в 11:36",null,"установить","http://megaplan.altica.ru/task/1001630/card/?fromList=1001630"]
[null,null,null,2]
[null,null,null,3]

{"sheet":"А530НР","index":2,"n_rows":4,"n_cols":8,"rows_kept":4,"cut":false,"hidden":false,"merged":[]}
["Назад"]
[null,null,null,"№","дата задачи",null,"причина","ссылка на мегаплан"]
[null,null,null,1,"25 ноября 2014 в 14:58",null,null,"http://megaplan.altica.ru/task/1001875/card/?fromList=1001875"]
[null,null,null,null,"26 ноября 2014 в 18:53",null,null,"http://megaplan.altica.ru/task/1001875/card/?fromList=1001875"]

{"sheet":"А963НР","index":3,"n_rows":3,"n_cols":8,"rows_kept":3,"cut":false,"hidden":false,"merged":[]}
["Назад"]
[null,null,null,"№","дата задачи",null,"причина","ссылка на мегаплан"]
[null,null,null,1,"2 октября 2013 в 17:04",null,"скорее всего заглушен двигатель или на загрузке, датчик не работает 3 часа","http://megaplan.altica.ru/task/tree/#filterId=12"]

{"sheet":"В001СН","index":4,"n_rows":2,"n_cols":8,"rows_kept":2,"cut":false,"hidden":false,"merged":[]}
["Назад"]
[null,null,null,"№","дата задачи",null,"причина","ссылка на мегаплан"]

{"sheet":"В002СН","index":5,"n_rows":4,"n_cols":8,"rows_kept":4,"cut":false,"hidden":false,"merged":[]}
["Назад"]
[null,null,null,"№","дата задачи",null,"причина","ссылка на мегаплан"]
[null,null,null,1,"28 января 2014 в 18:10",null,"не установлен","http://megaplan.altica.ru/task/1000791/card/?fromList=1000791"]
[null,null,null,2,"14 мая 2014 в 13:11",null,"отсутствовала в виалоне Виктории","http://megaplan.altica.ru/task/1001277/card/?fromList=1001277"]

{"sheet":"В003СН","index":6,"n_rows":3,"n_cols":8,"rows_kept":3,"cut":false,"hidden":false,"merged":[]}
["Назад"]
[null,null,null,"№","дата задачи",null,"причина","ссылка на мегаплан"]
[null,null,null,1,"26 ноября 2014 в 18:5",null,null,"http://megaplan.altica.ru/task/1001875/card/?fromList=1001875"]

{"sheet":"В197АУ","index":7,"n_rows":2,"n_cols":8,"rows_kept":2,"cut":false,"hidden":false,"merged":[]}
["Назад"]
[null,null,null,"№","дата задачи",null,"причина","ссылка на мегаплан"]

{"sheet":"В489КВ","index":8,"n_rows":2,"n_cols":8,"rows_kept":2,"cut":false,"hidden":false,"merged":[]}
["Назад"]
[null,null,null,"№","дата задачи",null,"причина","ссылка на мегаплан"]

{"sheet":"В490КВ","index":9,"n_rows":2,"n_cols":8,"rows_kept":2,"cut":false,"hidden":false,"merged":[]}
["Назад"]
[null,null,null,"№","дата задачи",null,"причина","ссылка на мегаплан"]

{"sheet":"В892ТО","index":10,"n_rows":2,"n_cols":8,"rows_kept":2,"cut":false,"hidden":false,"merged":[]}
["Назад"]
[null,null,null,"№","дата задачи",null,"причина","ссылка на мегаплан"]

{"sheet":"В893ТО","index":11,"n_rows":2,"n_cols":8,"rows_kept":2,"cut":false,"hidden":false,"merged":[]}
["Назад"]
[null,null,null,"№","дата задачи",null,"причина","ссылка на мегаплан"]

{"sheet":"В975АУ","index":12,"n_rows":2,"n_cols":8,"rows_kept":2,"cut":false,"hidden":false,"merged":[]}
["Назад"]
[null,null,null,"№","дата задачи",null,"причина","ссылка на мегаплан"]

{"sheet":"Е816НВ","index":13,"n_rows":4,"n_cols":8,"rows_kept":4,"cut":false,"hidden":false,"merged":[]}
["Назад"]
[null,null,null,"№","дата задачи",null,"причина","ссылка на мегаплан"]
[null,null,null,1,"2 октября 2013 в 17:04",null,"не установлен ","http://megaplan.altica.ru/task/1000311/card/?fromList=1000311"]
[null,null,null,2,"26 мая 2014 в 11:00",null,"не установлен  после был установлен","http://megaplan.altica.ru/task/1001277/card/?fromList=1001277"]

{"sheet":"Е913МС","index":14,"n_rows":3,"n_cols":8,"rows_kept":3,"cut":false,"hidden":false,"merged":[]}
["Назад"]
[null,null,null,"№","дата задачи",null,"причина","ссылка на мегаплан"]
[null,null,null,1,"8 ноября 2013 в 10:51",null,"не отражена","http://megaplan.altica.ru/task/1000462/card/?fromList=1000462"]

{"sheet":"К145УК","index":15,"n_rows":2,"n_cols":8,"rows_kept":2,"cut":false,"hidden":false,"merged":[]}
["Назад"]
[null,null,null,"№","дата задачи",null,"причина","ссылка на мегаплан"]

{"sheet":"К146УК","index":16,"n_rows":2,"n_cols":8,"rows_kept":2,"cut":false,"hidden":false,"merged":[]}
["Назад"]
[null,null,null,"№","дата задачи",null,"причина","ссылка на мегаплан"]

{"sheet":"К521ОЕ","index":17,"n_rows":2,"n_cols":8,"rows_kept":2,"cut":false,"hidden":false,"merged":[]}
["Назад"]
[null,null,null,"№","дата задачи",null,"причина","ссылка на мегаплан"]

{"sheet":"К951УК","index":18,"n_rows":2,"n_cols":8,"rows_kept":2,"cut":false,"hidden":false,"merged":[]}
["Назад"]
[null,null,null,"№","дата задачи",null,"причина","ссылка на мегаплан"]

{"sheet":"М673ХР","index":19,"n_rows":2,"n_cols":8,"rows_kept":2,"cut":false,"hidden":false,"merged":[]}
["Назад"]
[null,null,null,"№","дата задачи",null,"причина","ссылка на мегаплан"]

{"sheet":"М758НК","index":20,"n_rows":2,"n_cols":8,"rows_kept":2,"cut":false,"hidden":false,"merged":[]}
["Назад"]
[null,null,null,"№","дата задачи",null,"причина","ссылка на мегаплан"]

{"sheet":"М783РТ","index":21,"n_rows":3,"n_cols":8,"rows_kept":3,"cut":false,"hidden":false,"merged":[]}
["Назад"]
[null,null,null,"№","дата задачи",null,"причина","ссылка на мегаплан"]
[null,null,null,1,"25 февраля 2014 в 17:14",null,null,"http://megaplan.altica.ru/task/1001008/card/?fromList=1001008"]

{"sheet":"М784РТ","index":22,"n_rows":3,"n_cols":8,"rows_kept":3,"cut":false,"hidden":false,"merged":[]}
["Назад"]
[null,null,null,"№","дата задачи",null,"причина","ссылка на мегаплан"]
[null,null,null,1,"25 февраля 2014 в 17:14",null,null,"http://megaplan.altica.ru/task/1001008/card/?fromList=1001008"]

{"sheet":"М786РТ","index":23,"n_rows":6,"n_cols":8,"rows_kept":6,"cut":false,"hidden":false,"merged":[]}
["Назад"]
[null,null,null,"№","дата задачи",null,"причина","ссылка на мегаплан"]
[null,null,null,1,"2 октября 2013 в 17:04",null,null,"http://megaplan.altica.ru/task/1000311/card/?fromList=1000311"]
[null,null,null,2,"23 декабря 2013 в 23:00",null,null,"http://megaplan.altica.ru/task/1000640/card/?fromList=1000640"]
[null,null,null,3,"13 января 2014 в 09:53",null,"предохранитель","http://megaplan.altica.ru/task/1000715/card/?fromList=1000715"]
[null,null,null,4,"25 февраля 2014 в 17:14",null,null,"http://megaplan.altica.ru/task/1001008/card/?fromList=1001008"]

{"sheet":"М788РТ","index":24,"n_rows":3,"n_cols":8,"rows_kept":3,"cut":false,"hidden":false,"merged":[]}
["Назад"]
[null,null,null,"№","дата задачи",null,"причина","ссылка на мегаплан"]
[null,null,null,1,"25 февраля 2014 в 17:14",null,null,"http://megaplan.altica.ru/task/1001008/card/?fromList=1001008"]

{"sheet":"М864РТ","index":25,"n_rows":6,"n_cols":8,"rows_kept":6,"cut":false,"hidden":false,"merged":[]}
["Назад"]
[null,null,null,"№","дата задачи",null,"причина","ссылка на мегаплан"]
[null,null,null,1,"2 октября 2013 в 17:04",null,"не отражена","http://megaplan.altica.ru/task/1000311/card/?fromList=1000311"]
[null,null,null,2,"23 декабря 2013 в 23:00",null,"не отражена","http://megaplan.altica.ru/task/1000640/card/?fromList=1000640"]
[null,null,null,3,"13 января 2014 в 09:53",null,"предохранитель","http://megaplan.altica.ru/task/1000715/card/?fromList=1000715"]
[null,null,null,3,"25 февраля 2014 в 17:14",null,null,"http://megaplan.altica.ru/task/1001008/card/?fromList=1001008"]

{"sheet":"Н835МС","index":26,"n_rows":2,"n_cols":8,"rows_kept":2,"cut":false,"hidden":false,"merged":[]}
["Назад"]
[null,null,null,"№","дата задачи",null,"причина","ссылка на мегаплан"]

{"sheet":"О255УЕ","index":27,"n_rows":6,"n_cols":8,"rows_kept":6,"cut":false,"hidden":false,"merged":[]}
["Назад"]
[null,null,null,"№","дата задачи",null,"причина","ссылка на мегаплан"]
[null,null,null,1,"2 октября 2013 в 17:04",null,"не изветсна","http://megaplan.altica.ru/task/1000311/card/?fromList=1000311"]
[null,null,null,2,"13 января 2014 в 09:53",null,"долгий таймер между сообщениями с трекера","http://megaplan.altica.ru/task/1000715/card/?fromList=1000715"]
[null,null,null,3]
[null,null,null,4]

{"sheet":"О257УЕ","index":28,"n_rows":2,"n_cols":8,"rows_kept":2,"cut":false,"hidden":false,"merged":[]}
["Назад"]
[null,null,null,"№","дата задачи",null,"причина","ссылка на мегаплан"]

{"sheet":"О259УЕ","index":29,"n_rows":3,"n_cols":8,"rows_kept":3,"cut":false,"hidden":false,"merged":[]}
["Назад"]
[null,null,null,"№","дата задачи",null,"причина","ссылка на мегаплан"]
[null,null,null,1,"16 января в 11:29 ",null,null,"http://megaplan.altica.ru/task/1001875/card/?fromList=1001875"]

{"sheet":"О448ВМ","index":30,"n_rows":4,"n_cols":8,"rows_kept":4,"cut":false,"hidden":false,"merged":[]}
["Назад"]
[null,null,null,"№","дата задачи",null,"причина","ссылка на мегаплан"]
[null,null,null,1,"26 ноября 2014 в 18:53",null,null,"http://megaplan.altica.ru/task/1001875/card/?fromList=1001875"]
[null,null,null,2]

{"sheet":"О449ВМ","index":31,"n_rows":4,"n_cols":8,"rows_kept":4,"cut":false,"hidden":false,"merged":[]}
["Назад"]
[null,null,null,"№","дата задачи",null,"причина","ссылка на мегаплан"]
[null,null,null,1,"2 октября 2013 в 17:04",null,"неизвестна","http://megaplan.altica.ru/task/1000311/card/?fromList=1000311"]
[null,null,null,2]

{"sheet":"О453УЕ","index":32,"n_rows":9,"n_cols":8,"rows_kept":9,"cut":false,"hidden":false,"merged":[[6,6,7,6]]}
["Назад"]
[null,null,null,"№","дата задачи",null,"причина","ссылка на мегаплан"]
[null,null,null,1,"2 октября 2013 в 17:04",null,null,"http://megaplan.altica.ru/task/1000311/card/?fromList=1000311"]
[null,null,null,2,"23 декабря 2013 в 23:00",null,null,"http://megaplan.altica.ru/task/1000640/card/?fromList=1000640"]
[null,null,null,3,"13 января 2014 в 09:53",null,null,"http://megaplan.altica.ru/task/1000715/card/?fromList=1000715"]
[null,null,null,null,"2 октября 2013 в 17:04",null,"отключен датчик","http://megaplan.altica.ru/task/1000311/card/?fromList=1000311"]
[null,null,null,null,"25 февраля 2014 в 17:14",null,"одно и тоже","http://megaplan.altica.ru/task/1001008/card/?fromList=1001008"]
[null,null,null,null,"26 ноября 2014 в 18:5",null,null,"http://megaplan.altica.ru/task/1001875/card/?fromList=1001875"]
[null,null,null,null,"16 января 2015  в 11:2",null,null,"http://megaplan.altica.ru/task/1001875/card/?fromList=1001875"]

{"sheet":"О485ММ","index":33,"n_rows":2,"n_cols":8,"rows_kept":2,"cut":false,"hidden":false,"merged":[]}
["Назад"]
[null,null,null,"№","дата задачи",null,"причина","ссылка на мегаплан"]

{"sheet":"О752УЕ","index":34,"n_rows":2,"n_cols":8,"rows_kept":2,"cut":false,"hidden":false,"merged":[]}
["Назад"]
[null,null,null,"№","дата задачи",null,"причина","ссылка на мегаплан"]

{"sheet":"О868МС","index":35,"n_rows":2,"n_cols":8,"rows_kept":2,"cut":false,"hidden":false,"merged":[]}
["Назад"]
[null,null,null,"№","дата задачи",null,"причина","ссылка на мегаплан"]

{"sheet":"О878МС","index":36,"n_rows":3,"n_cols":8,"rows_kept":3,"cut":false,"hidden":false,"merged":[]}
["Назад"]
[null,null,null,"№","дата задачи",null,"причина","ссылка на мегаплан"]
[null,null,null,1,"26 ноября 2014 в 18:53",null,null,"http://megaplan.altica.ru/task/1001875/card/?fromList=1001875"]

{"sheet":"О885МС","index":37,"n_rows":2,"n_cols":8,"rows_kept":2,"cut":false,"hidden":false,"merged":[]}
["Назад"]
[null,null,null,"№","дата задачи",null,"причина","ссылка на мегаплан"]

{"sheet":"О886РВ","index":38,"n_rows":2,"n_cols":8,"rows_kept":2,"cut":false,"hidden":false,"merged":[]}
["Назад"]
[null,null,null,"№","дата задачи",null,"причина","ссылка на мегаплан"]

{"sheet":"О890РВ","index":39,"n_rows":2,"n_cols":8,"rows_kept":2,"cut":false,"hidden":false,"merged":[]}
["Назад"]
[null,null,null,"№","дата задачи",null,"причина","ссылка на мегаплан"]

{"sheet":"О965УЕ","index":40,"n_rows":5,"n_cols":8,"rows_kept":5,"cut":false,"hidden":false,"merged":[]}
["Назад"]
[null,null,null,"№","дата задачи",null,"причина","ссылка на мегаплан"]
[null,null,null,1,"2 октября 2013 в 17:04",null,null,"http://megaplan.altica.ru/task/1000311/card/?fromList=1000311"]
[null,null,null,2]
[null,null,null,3]

{"sheet":"О966УЕ","index":41,"n_rows":2,"n_cols":8,"rows_kept":2,"cut":false,"hidden":false,"merged":[]}
["Назад"]
[null,null,null,"№","дата задачи",null,"причина","ссылка на мегаплан"]

{"sheet":"О967УЕ","index":42,"n_rows":2,"n_cols":8,"rows_kept":2,"cut":false,"hidden":false,"merged":[]}
["Назад"]
[null,null,null,"№","дата задачи",null,"причина","ссылка на мегаплан"]

{"sheet":"О968УЕ","index":43,"n_rows":2,"n_cols":8,"rows_kept":2,"cut":false,"hidden":false,"merged":[]}
["Назад"]
[null,null,null,"№","дата задачи",null,"причина","ссылка на мегаплан"]

{"sheet":"О970УЕ","index":44,"n_rows":2,"n_cols":8,"rows_kept":2,"cut":false,"hidden":false,"merged":[]}
["Назад"]
[null,null,null,"№","дата задачи",null,"причина","ссылка на мегаплан"]

{"sheet":"О971УЕ","index":45,"n_rows":2,"n_cols":8,"rows_kept":2,"cut":false,"hidden":false,"merged":[]}
["Назад"]
[null,null,null,"№","дата задачи",null,"причина","ссылка на мегаплан"]

{"sheet":"О972УЕ","index":46,"n_rows":2,"n_cols":8,"rows_kept":2,"cut":false,"hidden":false,"merged":[]}
["Назад"]
[null,null,null,"№","дата задачи",null,"причина","ссылка на мегаплан"]

{"sheet":"О973УЕ","index":47,"n_rows":2,"n_cols":8,"rows_kept":2,"cut":false,"hidden":false,"merged":[]}
["Назад"]
[null,null,null,"№","дата задачи",null,"причина","ссылка на мегаплан"]

{"sheet":"Р892ВА","index":48,"n_rows":2,"n_cols":8,"rows_kept":2,"cut":false,"hidden":false,"merged":[]}
["Назад"]
[null,null,null,"№","дата задачи",null,"причина","ссылка на мегаплан"]

{"sheet":"Р893ВА","index":49,"n_rows":2,"n_cols":8,"rows_kept":2,"cut":false,"hidden":false,"merged":[]}
["Назад"]
[null,null,null,"№","дата задачи",null,"причина","ссылка на мегаплан"]

{"sheet":"Р952НК","index":50,"n_rows":2,"n_cols":8,"rows_kept":2,"cut":false,"hidden":false,"merged":[]}
["Назад"]
[null,null,null,"№","дата задачи",null,"причина","ссылка на мегаплан"]

{"sheet":"С165МО","index":51,"n_rows":2,"n_cols":8,"rows_kept":2,"cut":false,"hidden":false,"merged":[]}
["Назад"]
[null,null,null,"№","дата задачи",null,"причина","ссылка на мегаплан"]

{"sheet":"С246АУ","index":52,"n_rows":2,"n_cols":8,"rows_kept":2,"cut":false,"hidden":false,"merged":[]}
["Назад"]
[null,null,null,"№","дата задачи",null,"причина","ссылка на мегаплан"]

{"sheet":"С497СВ","index":53,"n_rows":3,"n_cols":8,"rows_kept":3,"cut":false,"hidden":false,"merged":[]}
["Назад"]
[null,null,null,"№","дата задачи",null,"причина","ссылка на мегаплан"]
[null,null,null,1,"23 декабря 2013 в 23:00",null,null,"http://megaplan.altica.ru/task/1000640/card/?fromList=1000640"]

{"sheet":"С628МН","index":54,"n_rows":2,"n_cols":8,"rows_kept":2,"cut":false,"hidden":false,"merged":[]}
["Назад"]
[null,null,null,"№","дата задачи",null,"причина","ссылка на мегаплан"]

{"sheet":"С923ОТ","index":55,"n_rows":2,"n_cols":8,"rows_kept":2,"cut":false,"hidden":false,"merged":[]}
["Назад"]
[null,null,null,"№","дата задачи",null,"причина","ссылка на мегаплан"]

{"sheet":"С924ОТ","index":56,"n_rows":4,"n_cols":8,"rows_kept":4,"cut":false,"hidden":false,"merged":[]}
["Назад"]
[null,null,null,"№","дата задачи",null,"причина","ссылка на мегаплан"]
[null,null,null,1,"2 октября 2013 в 17:04",null,null,"http://megaplan.altica.ru/task/tree/#filterId=12"]
[null,null,null,2,"23 декабря 2013 в 23:00",null,null,"http://megaplan.altica.ru/task/1000640/card/?fromList=1000640"]

{"sheet":"С925ОТ","index":57,"n_rows":2,"n_cols":8,"rows_kept":2,"cut":false,"hidden":false,"merged":[]}
["Назад"]
[null,null,null,"№","дата задачи",null,"причина","ссылка на мегаплан"]

{"sheet":"С927ОТ","index":58,"n_rows":2,"n_cols":8,"rows_kept":2,"cut":false,"hidden":false,"merged":[]}
["Назад"]
[null,null,null,"№","дата задачи",null,"причина","ссылка на мегаплан"]

{"sheet":"С928ОТ","index":59,"n_rows":2,"n_cols":8,"rows_kept":2,"cut":false,"hidden":false,"merged":[]}
["Назад"]
[null,null,null,"№","дата задачи",null,"причина","ссылка на мегаплан"]

{"sheet":"Т228ХЕ","index":60,"n_rows":2,"n_cols":8,"rows_kept":2,"cut":false,"hidden":false,"merged":[]}
["Назад"]
[null,null,null,"№","дата задачи",null,"причина","ссылка на мегаплан"]

{"sheet":"Т642РС","index":61,"n_rows":2,"n_cols":8,"rows_kept":2,"cut":false,"hidden":false,"merged":[]}
["Назад"]
[null,null,null,"№","дата задачи",null,"причина","ссылка на мегаплан"]

{"sheet":"Т644РС","index":62,"n_rows":4,"n_cols":8,"rows_kept":4,"cut":false,"hidden":false,"merged":[]}
["Назад"]
[null,null,null,"№","дата задачи",null,"причина","ссылка на мегаплан"]
[null,null,null,1,"25 февраля 2014 в 17:14",null,null,"http://megaplan.altica.ru/task/1001008/card/?fromList=1001008"]
[null,null,null,null,"26 ноября 2014 в 18:53",null,null,"http://megaplan.altica.ru/task/1001875/card/?fromList=1001875"]

{"sheet":"Т645РС","index":63,"n_rows":2,"n_cols":8,"rows_kept":2,"cut":false,"hidden":false,"merged":[]}
["Назад"]
[null,null,null,"№","дата задачи",null,"причина","ссылка на мегаплан"]

{"sheet":"Т907СМ","index":64,"n_rows":3,"n_cols":8,"rows_kept":3,"cut":false,"hidden":false,"merged":[]}
["Назад"]
[null,null,null,"№","дата задачи",null,"причина","ссылка на мегаплан"]
[null,null,null,1,"25 февраля 2014 в 17:14",null,"пепсика отказалсь от своего провайдера","http://megaplan.altica.ru/task/1001008/card/?fromList=1001008"]

{"sheet":"Т908СМ","index":65,"n_rows":6,"n_cols":8,"rows_kept":6,"cut":false,"hidden":false,"merged":[]}
["Назад"]
[null,null,null,"№","дата задачи",null,"причина","ссылка на мегаплан"]
[null,null,null,1,"2 октября 2013 в 17:04",null,null,"http://megaplan.altica.ru/task/1000311/card/?fromList=1000311"]
[null,null,null,2,"23 декабря 2013 в 23:00",null,null,"http://megaplan.altica.ru/task/1000640/card/?fromList=1000640"]
[null,null,null,3,"13 января 2014 в 09:53",null,"перебит кабель питания","http://megaplan.altica.ru/task/1000715/card/?fromList=1000715"]
[null,null,null,null,"25 февраля 2014 в 17:14",null,"пепсика отказалсь от своего провайдера","http://megaplan.altica.ru/task/1001008/card/?fromList=1001008"]

{"sheet":"Т911СМ","index":66,"n_rows":3,"n_cols":8,"rows_kept":3,"cut":false,"hidden":false,"merged":[]}
["Назад"]
[null,null,null,"№","дата задачи",null,"причина","ссылка на мегаплан"]
[null,null,null,null,"25 февраля 2014 в 17:14",null,"пепсика отказалсь от своего провайдера","http://megaplan.altica.ru/task/1001008/card/?fromList=1001008"]

{"sheet":"Т913СМ","index":67,"n_rows":3,"n_cols":8,"rows_kept":3,"cut":false,"hidden":false,"merged":[]}
["Назад"]
[null,null,null,"№","дата задачи",null,"причина","ссылка на мегаплан"]
[null,null,null,null,"25 февраля 2014 в 17:14",null,"пепсика отказалсь от своего провайдера","http://megaplan.altica.ru/task/1001008/card/?fromList=1001008"]

{"sheet":"У045MB","index":68,"n_rows":3,"n_cols":8,"rows_kept":3,"cut":false,"hidden":false,"merged":[]}
["Назад"]
[null,null,null,"№","дата задачи",null,"причина","ссылка на мегаплан"]
[null,null,null,1,"2 октября 2013 в 17:04",null,"отключен датчик","http://megaplan.altica.ru/task/1000311/card/?fromList=1000311"]

{"sheet":"У046МВ","index":69,"n_rows":2,"n_cols":8,"rows_kept":2,"cut":false,"hidden":false,"merged":[]}
["Назад"]
[null,null,null,"№","дата задачи",null,"причина","ссылка на мегаплан"]

{"sheet":"У122МУ","index":70,"n_rows":2,"n_cols":8,"rows_kept":2,"cut":false,"hidden":false,"merged":[]}
["Назад"]
[null,null,null,"№","дата задачи",null,"причина","ссылка на мегаплан"]

{"sheet":"У793ММ","index":71,"n_rows":4,"n_cols":8,"rows_kept":4,"cut":false,"hidden":false,"merged":[]}
["Назад"]
[null,null,null,"№","дата задачи",null,"причина","ссылка на мегаплан"]
[null,null,null,1,"2 октября 2013 в 17:04",null,"обесточена датчик рабочий","http://megaplan.altica.ru/task/1000311/card/?fromList=1000311"]
[null,null,null,2,"23 декабря 2013",null,"не отражена","http://megaplan.altica.ru/task/1000640/card/?fromList=1000640"]

{"sheet":"У794МВ","index":72,"n_rows":3,"n_cols":8,"rows_kept":3,"cut":false,"hidden":false,"merged":[]}
["Назад"]
[null,null,null,"№","дата задачи",null,"причина","ссылка на мегаплан"]
[null,null,null,1,"2 октября 2013 в 17:04",null,null,"http://megaplan.altica.ru/task/1000311/card/?fromList=1000311"]

{"sheet":"У794ММ","index":73,"n_rows":2,"n_cols":8,"rows_kept":2,"cut":false,"hidden":false,"merged":[]}
["Назад"]
[null,null,null,"№","дата задачи",null,"причина","ссылка на мегаплан"]

{"sheet":"У795АУ","index":74,"n_rows":2,"n_cols":8,"rows_kept":2,"cut":false,"hidden":false,"merged":[]}
["Назад"]
[null,null,null,"№","дата задачи",null,"причина","ссылка на мегаплан"]

{"sheet":"У796АУ","index":75,"n_rows":2,"n_cols":8,"rows_kept":2,"cut":false,"hidden":false,"merged":[]}
["Назад"]
[null,null,null,"№","дата задачи",null,"причина","ссылка на мегаплан"]

{"sheet":"Х083РК","index":76,"n_rows":2,"n_cols":8,"rows_kept":2,"cut":false,"hidden":false,"merged":[]}
["Назад"]
[null,null,null,"№","дата задачи",null,"причина","ссылка на мегаплан"]

{"sheet":"Х187ТХ","index":77,"n_rows":3,"n_cols":8,"rows_kept":3,"cut":false,"hidden":false,"merged":[]}
["Назад"]
[null,null,null,"№","дата задачи",null,"причина","ссылка на мегаплан"]
[null,null,null,1,"26 ноября 2014 в 18:53",null,null,"http://megaplan.altica.ru/task/1001875/card/?fromList=1001875"]

{"sheet":"Х188ТХ","index":78,"n_rows":3,"n_cols":8,"rows_kept":3,"cut":false,"hidden":false,"merged":[]}
["Назад"]
[null,null,null,"№","дата задачи",null,"причина","ссылка на мегаплан"]
[null,null,null,1,"27 января 2015 в 18:55",null,null,"http://megaplan.altica.ru/task/1002003/card/?fromList=1002003"]

{"sheet":"Х455ХМ","index":79,"n_rows":3,"n_cols":8,"rows_kept":3,"cut":false,"hidden":false,"merged":[]}
["Назад"]
[null,null,null,"№","дата задачи",null,"причина","ссылка на мегаплан"]
[null,null,null,1,"25 октября 2013 в 11:51",null,"не отражена","http://megaplan.altica.ru/task/1000405/card/?fromList=1000405"]

{"sheet":"Х630ТХ","index":80,"n_rows":2,"n_cols":8,"rows_kept":2,"cut":false,"hidden":false,"merged":[]}
["Назад"]
[null,null,null,"№","дата задачи",null,"причина","ссылка на мегаплан"]

{"sheet":"Х671ТХ","index":81,"n_rows":2,"n_cols":8,"rows_kept":2,"cut":false,"hidden":false,"merged":[]}
["Назад"]
[null,null,null,"№","дата задачи",null,"причина","ссылка на мегаплан"]

{"sheet":"Х921РТ","index":82,"n_rows":2,"n_cols":8,"rows_kept":2,"cut":false,"hidden":false,"merged":[]}
["Назад"]
[null,null,null,"№","дата задачи",null,"причина","ссылка на мегаплан"]

{"sheet":"Х922РТ","index":83,"n_rows":2,"n_cols":8,"rows_kept":2,"cut":false,"hidden":false,"merged":[]}
["Назад"]
[null,null,null,"№","дата задачи",null,"причина","ссылка на мегаплан"]

{"sheet":"Х923РТ","index":84,"n_rows":2,"n_cols":8,"rows_kept":2,"cut":false,"hidden":false,"merged":[]}
["Назад"]
[null,null,null,"№","дата задачи",null,"причина","ссылка на мегаплан"]

{"sheet":"Х987ТХ","index":85,"n_rows":2,"n_cols":8,"rows_kept":2,"cut":false,"hidden":false,"merged":[]}
["Назад"]
[null,null,null,"№","дата задачи",null,"причина","ссылка на мегаплан"]